bitfinex-derivatives/quotes_BTCF0:USTF0_20210707
["timestamp","ask_amount","ask_price","bid_price","bid_amount"]
[1625644289144,2.66420319,34874.0,34873.0,0.002]
[1625644289503,5.1738852,34874.0,34873.0,0.002]
[1625644290164,5.1738852,34874.0,34852.0,0.32901412]
[1625644290284,5.1738852,34874.0,34858.0,0.005]
[1625644290404,0.33482203,34860.0,34858.0,0.005]
[1625644290522,4.7044,34859.0,34858.0,0.005]
[1625644290653,5.8739139,34859.0,34842.0,0.33009627]
[1625644291004,0.33486441,34853.0,34838.0,0.33052998]
[1625644291184,0.24057544,34840.0,34839.0,0.24057544]
[1625644291364,0.48715544,34840.0,34839.0,0.24057544]
[1625644292085,0.48715544,34840.0,34839.0,0.29757544]
[1625644292386,0.24057544,34840.0,34839.0,0.29757544]
[1625644292745,0.24057544,34840.0,34839.0,0.24057544]
[1625644293707,0.54738544,34840.0,34839.0,0.24057544]
[1625644294068,0.54738544,34840.0,34839.0,0.29757544]
[1625644295027,0.24057544,34840.0,34839.0,0.29757544]
[1625644295268,0.24057544,34840.0,34839.0,0.24057544]
[1625644296109,0.56966544,34840.0,34839.0,0.24057544]
[1625644297189,0.24057544,34840.0,34839.0,0.24057544]
[1625644297430,0.24057544,34840.0,34839.0,0.29757544]
[1625644297672,3.94847544,34840.0,34839.0,0.29757544]
[1625644298033,3.77646601,34840.0,34839.0,0.29757544]
[1625644300746,3.77646601,34840.0,34839.0,0.24057544]
[1625644300747,4.01472601,34840.0,34839.0,0.24057544]
[1625644300864,4.01472601,34840.0,34839.0,0.29757544]
[1625644301224,4.01472601,34840.0,34839.0,0.24057544]
[1625644301403,4.01472601,34840.0,34839.0,0.50263544]
[1625644301826,3.77646601,34840.0,34839.0,0.55963544]
[1625644304946,3.60445658,34840.0,34839.0,0.29757544]
[1625644305244,3.84503202,34840.0,34839.0,0.29757544]
[1625644305847,4.15260202,34840.0,34839.0,0.29757544]
[1625644306628,4.15260202,34840.0,34839.0,0.24057544]
[1625644307409,4.15260202,34840.0,34839.0,0.29757544]
[1625644311435,3.84503202,34840.0,34839.0,0.29757544]
[1625644311857,3.84503202,34840.0,34839.0,0.58125544]
[1625644312036,3.67302259,34840.0,34839.0,0.58125544]
[1625644315221,3.67302259,34840.0,34839.0,0.29757544]
[1625644316783,3.67302259,34840.0,34839.0,0.30252679]
[1625644319489,3.50101316,34840.0,34839.0,0.30252679]
[1625644321956,3.58591316,34840.0,34839.0,0.38872679]
[1625644322135,3.50101316,34840.0,34839.0,0.30252679]
[1625644322382,3.50101316,34840.0,34839.0,0.24552679]
[1625644322495,3.50101316,34840.0,34839.0,0.00495135]
[1625644322738,3.51328014,34840.0,34839.0,0.00495135]
[1625644323037,3.51328014,34840.0,34838.0,0.00494127]
[1625644323218,0.01226775,34839.0,34838.0,0.00494127]
[1625644323459,0.49341863,34839.0,34838.0,0.00494127]
[1625644323878,0.99341863,34839.0,34838.0,0.00494127]
[1625644324299,0.99341863,34839.0,34837.0,4.127e-05]
[1625644324718,0.01228211,34838.0,34837.0,4.127e-05]
[1625644325984,0.34657617,34838.0,34832.0,4.127e-05]
[1625644326105,0.84657617,34838.0,34832.0,4.127e-05]
[1625644326224,1.3479344,34838.0,34832.0,4.127e-05]
[1625644326464,0.01228252,34837.0,34832.0,4.127e-05]
[1625644327005,0.34642465,34837.0,34832.0,4.127e-05]
[1625644327125,0.5,34836.0,34822.0,7.763e-05]
[1625644327245,1.11569647,34836.0,34822.0,7.763e-05]
[1625644327487,0.96230176,34823.0,34822.0,7.763e-05]
[1625644327606,1.18394176,34823.0,34822.0,7.763e-05]
[1625644328806,1.18394176,34823.0,34818.0,8.13e-06]
[1625644328807,4.2764,34819.0,34818.0,8.13e-06]
[1625644329470,4.51697544,34819.0,34816.0,0.005]
[1625644331569,0.48115088,34817.0,34816.0,0.005]
[1625644332889,0.98115088,34817.0,34816.0,0.005]
[1625644335176,0.98115088,34817.0,34796.0,0.08269033]
[1625644335297,2.15082884,34817.0,34808.0,0.002]
[1625644335541,0.72172632,34809.0,34808.0,0.002]
[1625644335719,1.48787632,34809.0,34808.0,0.002]
[1625644336019,1.5715758,34809.0,34808.0,0.002]
[1625644336262,1.82217899,34809.0,34808.0,0.002]
[1625644336378,1.82217899,34809.0,34803.0,0.003]
[1625644336559,1.82217899,34809.0,34787.0,0.41379598]
[1625644336560,1.48787632,34809.0,34787.0,0.41379598]
[1625644336858,0.08357739,34808.0,34785.0,0.08283395]
[1625644336980,0.08357978,34805.0,34782.0,0.08290242]
[1625644337225,0.58357978,34805.0,34782.0,0.08290242]
[1625644337344,0.58357978,34805.0,34777.0,1.16063385]
[1625644337345,0.0836573,34801.0,34778.0,0.55127728]
[1625644337465,3.812,34781.0,34778.0,0.55127728]
[1625644337587,0.96230176,34779.0,34772.0,0.99802567]
[1625644337826,0.96230176,34779.0,34771.0,0.99832865]
[1625644338308,0.96230176,34779.0,34770.0,0.99847443]
[1625644338548,0.96230176,34779.0,34768.0,0.99608489]
[1625644338848,0.96230176,34779.0,34767.0,0.99643343]
[1625644339331,0.96230176,34779.0,34766.0,1.23810397]
[1625644339508,0.96230176,34779.0,34773.0,0.24057544]
[1625644339629,0.72172632,34779.0,34773.0,0.24057544]
[1625644340228,0.72172632,34779.0,34774.0,0.057]
[1625644340889,0.72172632,34779.0,34774.0,0.32441]
[1625644341613,0.72172632,34779.0,34778.0,0.29757544]
[1625644342330,0.72172632,34779.0,34778.0,0.24057544]
[1625644344076,0.72172632,34779.0,34773.0,0.24057544]
[1625644344193,0.96249632,34779.0,34769.0,1.23509584]
[1625644344554,0.96249632,34779.0,34770.0,0.057]
[1625644345577,0.96249632,34779.0,34773.0,0.24057544]
[1625644345759,0.96249632,34779.0,34774.0,0.057]
[1625644345760,0.72172632,34779.0,34774.0,0.057]
[1625644346116,0.48115088,34779.0,34774.0,0.057]
[1625644346538,0.9688,34800.0,34774.0,0.057]
[1625644347020,0.9688,34800.0,34775.0,0.99115418]
[1625644347137,0.9688,34800.0,34776.0,0.057]
[1625644347259,0.9688,34800.0,34776.0,1.04858634]
[1625644347441,0.001,34780.0,34776.0,1.04858634]
[1625644347562,0.001,34780.0,34779.0,0.72172632]
[1625644347681,0.001,34780.0,34779.0,1.01577632]
[1625644347800,0.003,34790.0,34779.0,2.00626244]
[1625644348040,0.003,34790.0,34783.0,0.057]
[1625644348822,0.003,34790.0,34783.0,1.04623521]
[1625644349543,0.003,34790.0,34789.0,0.72172632]
[1625644349666,0.003,34790.0,34789.0,0.77872632]
[1625644349842,0.003,34790.0,34789.0,1.08228632]
[1625644350504,1.04906431,34800.0,34789.0,1.08228632]
[1625644350746,1.04906431,34800.0,34789.0,1.02528632]
[1625644350870,1.04906431,34800.0,34789.0,0.72172632]
[1625644351165,1.54906431,34800.0,34789.0,0.72172632]
[1625644351647,0.24057544,34790.0,34789.0,0.72172632]
[1625644351768,0.49203544,34790.0,34789.0,0.72172632]
[1625644353328,0.24057544,34790.0,34789.0,0.72172632]
[1625644353689,0.24057544,34790.0,34789.0,0.77872632]
[1625644355673,0.24357544,34791.0,34789.0,0.77872632]
[1625644355794,0.24357544,34791.0,34789.0,0.99490632]
[1625644356334,0.24057544,34791.0,34789.0,0.99490632]
[1625644357417,0.24057544,34791.0,34790.0,0.00495128]
[1625644357656,0.001,34792.0,34790.0,0.00495128]
[1625644358981,0.002,34797.0,34790.0,0.00495128]
[1625644359461,0.001,34792.0,34790.0,0.00495128]
[1625644359582,0.001,34792.0,34791.0,0.29757544]
[1625644359941,0.001,34792.0,34791.0,0.30251163]
[1625644360064,4.10378887,34802.0,34791.0,0.30251163]
[1625644360423,4.10378887,34802.0,34792.0,0.00493614]
[1625644361623,4.10378887,34802.0,34801.0,0.24057544]
[1625644363366,4.10378887,34802.0,34801.0,0.24551157]
[1625644369374,4.10078887,34802.0,34801.0,0.24551157]
[1625644372915,4.10078887,34802.0,34801.0,0.30251157]
[1625644373817,4.10078887,34802.0,34801.0,0.24551157]
[1625644374001,4.10078887,34802.0,34801.0,0.30251157]
[1625644374838,4.10078887,34802.0,34801.0,0.24551157]
[1625644375080,4.10078887,34802.0,34801.0,0.24057544]
[1625644375320,4.10078887,34802.0,34801.0,0.24550317]
[1625644377123,0.001,34804.0,34801.0,0.24550317]
[1625644377425,0.001,34804.0,34802.0,0.00492769]
[1625644379109,0.25287189,34803.0,34802.0,0.00492769]
[1625644379408,0.01229645,34803.0,34802.0,0.00492769]
[1625644379533,0.001,34804.0,34802.0,0.00492769]
[1625644379710,0.001,34804.0,34803.0,0.24057544]
[1625644379830,0.001,34804.0,34803.0,0.29757544]
[1625644380011,0.16909558,34804.0,34803.0,0.29757544]
[1625644380129,0.18139183,34804.0,34803.0,0.30250886]
[1625644380310,0.18139183,34804.0,34803.0,0.24550886]
[1625644380495,0.01329625,34804.0,34803.0,0.24550886]
[1625644381751,0.25387169,34804.0,34803.0,0.24550886]
[1625644384395,1.26308681,34804.0,34803.0,0.24550886]
[1625644386562,0.25387169,34804.0,34803.0,0.24550886]
[1625644386802,1.43260855,34804.0,34803.0,0.24550886]
[1625644386920,2.44297849,34804.0,34803.0,0.24550886]
[1625644387100,2.44297849,34804.0,34803.0,0.30250886]
[1625644387341,1.26324163,34804.0,34803.0,0.30250886]
[1625644388840,2.44303933,34804.0,34803.0,0.30250886]
[1625644389500,2.20246389,34804.0,34803.0,0.30250886]
[1625644389624,1.02266619,34804.0,34803.0,0.30250886]
[1625644390284,0.01229625,34804.0,34803.0,0.30250886]
[1625644390525,1.02418977,34804.0,34803.0,0.30250886]
[1625644392266,2.20569723,34804.0,34803.0,0.30250886]
[1625644394009,1.01189352,34804.0,34803.0,0.30250886]
[1625644394429,1.01367319,34806.0,34803.0,0.30250886]
[1625644394552,1.01300669,34805.0,34804.0,0.00493304]
[1625644394669,1.01300669,34805.0,34804.0,0.23151304]
[1625644394852,1.01300669,34805.0,34804.0,0.28851304]
[1625644395032,1.01383413,34806.0,34804.0,0.28851304]
[1625644395391,1.01383413,34806.0,34805.0,0.00493277]
[1625644395933,1.01383413,34806.0,34805.0,0.30250821]
[1625644396777,1.01383413,34806.0,34805.0,0.46965557]
[1625644397558,1.68902653,34806.0,34805.0,0.46965557]
[1625644398460,1.68902653,34806.0,34805.0,0.30250821]
[1625644400564,1.68902653,34806.0,34805.0,0.97086891]
[1625644404532,2.87263591,34806.0,34805.0,0.97086891]
[1625644405613,2.87263591,34806.0,34805.0,1.97269559]
[1625644409459,2.87163591,34806.0,34805.0,1.97269559]
[1625644415291,2.87163591,34806.0,34805.0,2.20063559]
[1625644415653,2.87163591,34806.0,34805.0,2.14363559]
[1625644415955,4.22527711,34806.0,34805.0,2.14363559]
[1625644416800,4.22527711,34806.0,34805.0,1.91569559]
[1625644417705,5.74842546,34806.0,34805.0,0.24550821]
[1625644417818,5.76072599,34806.0,34805.0,0.24550821]
[1625644420460,5.76072599,34806.0,34805.0,0.00493277]
[1625644420822,5.76072599,34806.0,34801.0,0.40887428]
[1625644420942,5.76072599,34806.0,34801.0,0.24157544]
[1625644420943,7.45334889,34806.0,34801.0,0.24157544]
[1625644421123,5.75396143,34802.0,34801.0,0.24157544]
[1625644421245,6.01858143,34802.0,34801.0,0.24157544]
[1625644421605,7.72316515,34802.0,34801.0,0.24157544]
[1625644422025,8.20431603,34802.0,34801.0,0.24157544]
[1625644422868,8.29141603,34802.0,34801.0,0.24157544]
[1625644423108,8.29141603,34802.0,34801.0,0.001]
[1625644423227,8.29141603,34802.0,34796.0,0.002]
[1625644423409,5.75158491,34797.0,34795.0,0.24057544]
[1625644423651,5.75161008,34796.0,34795.0,0.24057544]
[1625644423827,5.76391016,34796.0,34795.0,0.21237544]
[1625644424008,7.69608178,34796.0,34795.0,0.12377544]
[1625644425210,6.0044856,34796.0,34795.0,0.12377544]
[1625644425393,7.69486647,34796.0,34795.0,0.12377544]
[1625644425569,7.68256639,34796.0,34795.0,0.12377544]
[1625644426711,7.68256639,34796.0,34791.0,0.003]
[1625644426831,8.18256639,34796.0,34791.0,0.003]
[1625644426952,8.19487,34796.0,34791.0,0.003]
[1625644427134,7.64530036,34792.0,34791.0,0.003]
[1625644427251,8.14530036,34792.0,34791.0,0.003]
[1625644427372,8.14530036,34792.0,34787.0,0.003]
[1625644427612,6.24980796,34788.0,34787.0,0.003]
[1625644428031,6.97153428,34788.0,34787.0,0.003]
[1625644428153,7.47153428,34788.0,34787.0,0.003]
[1625644428754,7.47153428,34788.0,34787.0,0.0011]
[1625644429054,9.16055714,34788.0,34787.0,0.0011]
[1625644429716,9.16055714,34788.0,34777.0,0.005]
[1625644429833,8.66055714,34788.0,34777.0,0.005]
[1625644430075,5.20511277,34778.0,34777.0,0.005]
[1625644430374,3.85548166,34778.0,34773.0,0.40849322]
[1625644430558,0.50614072,34774.0,34773.0,0.24057544]
[1625644430854,2.19311707,34774.0,34773.0,0.24057544]
[1625644430975,2.19311707,34774.0,34773.0,0.29757544]
[1625644431096,0.50614072,34774.0,34773.0,0.29757544]
[1625644431337,0.16864438,34774.0,34773.0,0.29757544]
[1625644431938,0.16864438,34774.0,34773.0,0.24057544]
[1625644432118,0.40921982,34774.0,34773.0,0.24057544]
[1625644432239,2.43122602,34774.0,34773.0,0.24057544]
[1625644432960,1.42022132,34774.0,34773.0,0.24057544]
[1625644433441,1.42022132,34774.0,34773.0,0.29757544]
[1625644433742,0.40901834,34774.0,34773.0,0.29757544]
[1625644433921,1.01709935,34774.0,34773.0,0.24057544]
[1625644434222,1.69037475,34774.0,34773.0,0.24057544]
[1625644434464,1.01709935,34774.0,34773.0,0.24057544]
[1625644434644,0.68052284,34774.0,34773.0,0.24057544]
[1625644435673,1.01665483,34774.0,34773.0,0.24057544]
[1625644435906,1.68935633,34774.0,34773.0,0.24057544]
[1625644436509,1.68935633,34774.0,34770.0,0.24057544]
[1625644436749,2.69819817,34774.0,34770.0,0.24057544]
[1625644436929,2.1861095,34771.0,34768.0,0.001]
[1625644437169,0.16811562,34769.0,34768.0,0.001]
[1625644437776,0.50402253,34769.0,34768.0,0.001]
[1625644438129,1.65716923,34769.0,34768.0,0.001]
[1625644439091,0.98517341,34769.0,34768.0,0.001]
[1625644439267,1.07027341,34769.0,34768.0,0.001]
[1625644439568,1.7415008,34769.0,34768.0,0.001]
[1625644440112,1.98207624,34769.0,34768.0,0.001]
[1625644441071,2.98868087,34769.0,34768.0,0.001]
[1625644441312,1.98207624,34769.0,34768.0,0.001]
[1625644441673,2.9886834,34769.0,34768.0,0.001]
[1625644441925,2.9035834,34769.0,34768.0,0.001]
[1625644442277,1.89697624,34769.0,34768.0,0.001]
[1625644442578,1.22574885,34769.0,34768.0,0.001]
[1625644442699,6.18194885,34769.0,34768.0,0.001]
[1625644442818,5.84568088,34769.0,34768.0,0.001]
[1625644443238,6.18086698,34769.0,34768.0,0.001]
[1625644444019,5.84552695,34769.0,34768.0,0.001]
[1625644444319,5.67792632,34769.0,34768.0,0.001]
[1625644445459,5.94417632,34769.0,34768.0,0.001]
[1625644445643,6.44658459,34769.0,34768.0,0.001]
[1625644445818,6.94658459,34769.0,34768.0,0.001]
[1625644445943,6.61164542,34769.0,34768.0,0.001]
[1625644446119,6.11164542,34769.0,34768.0,0.001]
[1625644446659,7.11541874,34769.0,34768.0,0.001]
[1625644447020,6.44616125,34769.0,34768.0,0.001]
[1625644447921,6.11149545,34769.0,34768.0,0.001]
[1625644448343,6.11149545,34769.0,34763.0,0.001]
[1625644448884,0.16728128,34768.0,34763.0,0.001]
[1625644449365,6.11143493,34769.0,34763.0,0.001]
[1625644450028,5.94417632,34769.0,34763.0,0.001]
[1625644450145,0.48115088,34764.0,34763.0,0.001]
[1625644453334,0.48115088,34764.0,34757.0,0.29757544]
[1625644453814,0.74694088,34764.0,34757.0,0.29757544]
[1625644454234,0.24057544,34758.0,34757.0,0.29757544]
[1625644457539,0.24057544,34758.0,34757.0,0.30253386]
[1625644460846,0.53706544,34758.0,34757.0,0.30253386]
[1625644462286,0.24057544,34758.0,34757.0,0.30253386]
[1625644475035,0.44974544,34758.0,34757.0,0.30253386]
[1625644475157,0.46200375,34758.0,34757.0,0.30253386]
[1625644476494,0.01225831,34758.0,34757.0,0.30253386]
[1625644476610,0.001,34759.0,34757.0,0.55042386]
[1625644476901,0.001,34759.0,34758.0,0.00495878]
[1625644479128,0.01325718,34759.0,34758.0,0.00495878]
[1625644479309,0.18169534,34759.0,34758.0,0.00495878]
[1625644479846,0.01325718,34759.0,34758.0,0.00495878]
[1625644480147,0.51846468,34759.0,34758.0,0.00495878]
[1625644480748,0.18171578,34759.0,34758.0,0.00495878]
[1625644480987,0.51846869,34759.0,34758.0,0.00495878]
[1625644481228,1.19302376,34759.0,34758.0,0.00495878]
[1625644482248,2.20423781,34759.0,34758.0,0.00495878]
[1625644482669,1.19302376,34759.0,34758.0,0.00495878]
[1625644483034,2.20423651,34759.0,34758.0,0.00495878]
[1625644483512,3.38533587,34759.0,34758.0,0.00495878]
[1625644484052,2.20423651,34759.0,34758.0,0.00495878]
[1625644484296,1.19302376,34759.0,34758.0,0.00495878]
[1625644485073,2.20656875,34759.0,34758.0,0.00495878]
[1625644485313,3.38906401,34759.0,34758.0,0.00495878]
[1625644486816,2.20656875,34759.0,34758.0,0.23048507]
[1625644487057,3.39027165,34759.0,34758.0,0.5680192]
[1625644487297,2.19431157,34759.0,34758.0,1.24256612]
[1625644487417,2.19331157,34759.0,34758.0,1.24256612]
[1625644487597,0.19261157,34759.0,34758.0,1.24256612]
[1625644488016,0.001,34760.0,34758.0,1.24256612]
[1625644488256,0.001,34760.0,34758.0,0.06195878]
[1625644488378,0.001,34760.0,34759.0,0.00495839]
[1625644488744,1.1847787,34760.0,34759.0,0.00495839]
[1625644489223,1.19703567,34760.0,34759.0,0.00495839]
[1625644489759,2.55085326,34760.0,34759.0,0.00495839]
[1625644490000,4.07394484,34760.0,34759.0,0.00495839]
[1625644490428,4.31452028,34760.0,34759.0,0.00495839]
[1625644490841,4.31452028,34760.0,34758.0,0.00495996]
[1625644491021,4.53642028,34760.0,34758.0,0.00495996]
[1625644491143,4.53642028,34760.0,34757.0,0.24057544]
[1625644491262,4.53642028,34760.0,34753.0,0.50850489]
[1625644491263,4.06445676,34759.0,34753.0,0.50850489]
[1625644491382,4.07671681,34759.0,34753.0,0.50850489]
[1625644491563,4.06339762,34754.0,34753.0,0.001]
[1625644491863,4.07565894,34754.0,34753.0,0.00596092]
[1625644492226,4.07565894,34754.0,34753.0,0.001]
[1625644492470,4.55680982,34754.0,34753.0,0.001]
[1625644492765,6.2462635,34754.0,34748.0,0.002]
[1625644493064,4.05648003,34749.0,34748.0,0.002]
[1625644493185,4.31730003,34749.0,34748.0,0.002]
[1625644493611,6.01865914,34749.0,34748.0,0.002]
[1625644494453,4.57013911,34749.0,34748.0,0.002]
[1625644494695,6.25690934,34749.0,34748.0,0.002]
[1625644494993,4.57013911,34749.0,34748.0,0.002]
[1625644495171,6.2578488,34749.0,34748.0,0.002]
[1625644496014,4.57013911,34749.0,34748.0,0.002]
[1625644496434,0.24057544,34745.0,34743.0,0.24157544]
[1625644496735,4.28804127,34745.0,34743.0,0.24157544]
[1625644498003,4.28804127,34745.0,34743.0,0.001]
[1625644498482,4.52861671,34745.0,34743.0,0.001]
[1625644498661,4.04259808,34744.0,34743.0,0.001]
[1625644502748,5.72421193,34744.0,34743.0,0.001]
[1625644502991,4.04259808,34744.0,34740.0,0.24057544]
[1625644503230,4.03395989,34741.0,34740.0,0.24057544]
[1625644503530,4.37612989,34741.0,34740.0,0.24057544]
[1625644504491,4.61670533,34741.0,34740.0,0.24057544]
[1625644505034,9.04520533,34741.0,34740.0,0.24057544]
[1625644505155,7.19032138,34741.0,34740.0,0.29757544]
[1625644505275,2.52124594,34741.0,34740.0,0.29757544]
[1625644505456,1.17812673,34742.0,34740.0,0.29757544]
[1625644505576,1.17812673,34742.0,34740.0,0.62119544]
[1625644505694,1.17697892,34741.0,34740.0,0.62119544]
[1625644505815,0.001,34742.0,34740.0,0.62119544]
[1625644506534,0.001,34742.0,34741.0,0.24057544]
[1625644506656,0.001,34742.0,34741.0,0.29757544]
[1625644506897,1.17829973,34742.0,34741.0,0.29757544]
[1625644507195,1.09829973,34742.0,34741.0,0.29757544]
[1625644507315,1.34546138,34744.0,34741.0,0.51862544]
[1625644507678,0.24057544,34745.0,34741.0,0.51862544]
[1625644508276,0.24057544,34745.0,34744.0,0.339]
[1625644508395,0.24057544,34745.0,34744.0,0.396]
[1625644508817,0.24057544,34745.0,34744.0,1.066]
[1625644510500,0.48115088,34745.0,34744.0,1.009]
[1625644510679,1.82482276,34745.0,34744.0,1.009]
[1625644511580,1.82482276,34745.0,34744.0,1.066]
[1625644512601,0.48115088,34745.0,34744.0,1.066]
[1625644514645,0.79783088,34745.0,34744.0,1.009]
[1625644515066,2.13909552,34745.0,34744.0,1.009]
[1625644515246,3.6468559,34745.0,34744.0,1.009]
[1625644515847,2.13909552,34745.0,34744.0,1.009]
[1625644516328,3.64551923,34745.0,34744.0,0.9918]
[1625644516567,3.64551923,34745.0,34744.0,0.9724]
[1625644516687,3.64551923,34745.0,34744.0,0.9667]
[1625644518010,3.65774648,34745.0,34744.0,0.9667]
[1625644518129,4.65911962,34745.0,34744.0,0.9667]
[1625644518550,4.89969506,34745.0,34744.0,0.9667]
[1625644519392,4.89969506,34745.0,34744.0,0.7379]
[1625644527269,6.06443921,34745.0,34744.0,0.7379]
[1625644528592,6.06443921,34745.0,34744.0,0.6898]
[1625644528713,6.06443921,34745.0,34744.0,0.6819]
[1625644528832,6.06443921,34745.0,34744.0,0.6721]
[1625644529315,6.15163921,34745.0,34744.0,0.6721]
[1625644529616,6.15163921,34745.0,34744.0,0.7291]
[1625644529738,6.06443921,34745.0,34744.0,0.7291]
[1625644529917,4.2413355,34745.0,34744.0,0.9905]
[1625644530457,4.2413355,34745.0,34744.0,0.9335]
[1625644530698,4.2413355,34745.0,34744.0,1.17407544]
[1625644531178,4.2413355,34745.0,34744.0,0.91267544]
[1625644532680,4.2413355,34745.0,34744.0,0.6721]
[1625644533338,5.73988703,34745.0,34744.0,0.6721]
[1625644534481,5.73988703,34745.0,34744.0,0.7291]
[1625644534600,4.2413355,34745.0,34744.0,0.7291]
[1625644534900,4.2413355,34745.0,34744.0,0.6721]
[1625644535920,4.2413355,34745.0,34744.0,0.7291]
[1625644536161,4.2413355,34745.0,34744.0,0.6721]
[1625644536400,4.2413355,34745.0,34744.0,0.7291]
[1625644536884,4.2413355,34745.0,34744.0,0.6721]
[1625644538086,5.74012652,34745.0,34744.0,0.6721]
[1625644538446,5.74012652,34745.0,34744.0,0.7291]
[1625644539106,5.74012652,34745.0,34744.0,0.6721]
[1625644541992,5.74012652,34745.0,34744.0,0.7291]
[1625644542232,5.74012652,34745.0,34744.0,0.6721]
[1625644542353,5.74012652,34745.0,34744.0,0.7291]
[1625644543013,5.74012652,34745.0,34744.0,0.6721]
[1625644543856,5.96799652,34745.0,34744.0,0.6721]
[1625644545958,5.96799652,34745.0,34744.0,0.7291]
[1625644546078,5.74012652,34745.0,34744.0,0.7291]
[1625644547700,6.40859526,34745.0,34744.0,0.7291]
[1625644548001,8.08206815,34745.0,34744.0,0.7291]
[1625644548962,8.08206815,34745.0,34744.0,0.727]
[1625644549383,8.07996815,34745.0,34744.0,0.727]
[1625644549505,8.07996815,34745.0,34744.0,0.057]
[1625644549926,7.40996815,34745.0,34744.0,0.057]
[1625644550772,7.40996815,34745.0,34739.0,0.058]
[1625644550890,7.40996815,34745.0,34744.0,0.24057544]
[1625644551012,0.25280269,34745.0,34744.0,0.24057544]
[1625644551191,0.24057544,34745.0,34744.0,0.24057544]
[1625644551312,6.28461544,34745.0,34744.0,0.24057544]
[1625644552032,6.31863173,34745.0,34744.0,0.24057544]
[1625644552872,6.28461544,34745.0,34744.0,0.24057544]
[1625644552992,6.28461544,34745.0,34744.0,0.29757544]
[1625644553955,6.31863127,34745.0,34744.0,0.29757544]
[1625644554193,6.28461544,34745.0,34744.0,0.29757544]
[1625644554313,6.04404,34745.0,34744.0,0.29757544]
[1625644554433,6.04404,34745.0,34744.0,0.30260357]
[1625644554914,6.04404,34745.0,34744.0,0.54317901]
[1625644555155,4.36856094,34745.0,34744.0,0.54317901]
[1625644555517,3.03046094,34745.0,34744.0,0.54317901]
[1625644555640,2.87946094,34745.0,34744.0,0.79766827]
[1625644555878,1.37151303,34745.0,34744.0,1.56110858]
[1625644556118,1.35943219,34745.0,34744.0,1.56110858]
[1625644556839,1.35943219,34745.0,34744.0,1.80168402]
[1625644557080,1.35943219,34745.0,34744.0,0.78375445]
[1625644557200,1.3715347,34745.0,34744.0,0.78375445]
[1625644557321,1.3715347,34745.0,34744.0,1.80122594]
[1625644557322,0.8713347,34745.0,34744.0,1.80122594]
[1625644557499,0.62803219,34745.0,34744.0,1.80122594]
[1625644561653,0.62803219,34745.0,34744.0,0.78375445]
[1625644562316,0.62803219,34745.0,34744.0,1.29219869]
[1625644562492,2.13243313,34745.0,34744.0,0.78375445]
[1625644562612,2.13243313,34745.0,34744.0,0.77872632]
[1625644562734,2.13243313,34745.0,34744.0,0.72172632]
[1625644562913,2.14454404,34745.0,34744.0,0.72172632]
[1625644563394,2.23204404,34745.0,34744.0,0.72172632]
[1625644563514,3.81389615,34745.0,34744.0,0.72172632]
[1625644565015,5.14915981,34745.0,34744.0,0.72172632]
[1625644565982,1.34737457,34745.0,34744.0,0.72172632]
[1625644567542,1.34737457,34745.0,34744.0,0.48115088]
[1625644568926,1.58795001,34745.0,34744.0,0.48115088]
[1625644570489,1.67415001,34745.0,34744.0,0.24057544]
[1625644570610,1.67415001,34745.0,34739.0,0.001]
[1625644570852,0.0121247,34744.0,34739.0,0.001]
[1625644570971,4.9524544,34740.0,34738.0,0.24057544]
[1625644571392,0.01212538,34739.0,34738.0,0.24057544]
[1625644571633,4.50636157,34739.0,34734.0,0.002]
[1625644571874,2.82875306,34735.0,34734.0,0.002]
[1625644572174,4.50423106,34735.0,34734.0,0.002]
[1625644573015,4.7448065,34735.0,34734.0,0.002]
[1625644573498,4.7448065,34735.0,34732.0,0.24057544]
[1625644573737,4.48082084,34733.0,34732.0,0.24057544]
[1625644573977,4.80693084,34733.0,34732.0,0.24057544]
[1625644574157,4.81905943,34733.0,34732.0,0.24057544]
[1625644574937,5.05963487,34733.0,34732.0,0.24057544]
[1625644575058,5.05963487,34733.0,34724.0,0.02]
[1625644575299,1.3261751,34725.0,34724.0,0.02]
[1625644575419,1.5438151,34725.0,34724.0,0.02]
[1625644575538,3.03566594,34725.0,34724.0,0.02]
[1625644576198,3.03566594,34725.0,34723.0,0.21407544]
[1625644576380,3.03566594,34725.0,34723.0,0.14597544]
[1625644576499,3.03566594,34725.0,34723.0,0.11247544]
[1625644576621,2.81611557,34724.0,34723.0,0.10287544]
[1625644576981,8.04696645,34724.0,34723.0,0.10287544]
[1625644577463,9.20496524,34724.0,34723.0,0.10287544]
[1625644577825,9.70113007,34724.0,34723.0,0.10287544]
[1625644578123,9.70113007,34724.0,34718.0,0.24057544]
[1625644578243,9.70113007,34724.0,34715.0,0.59243941]
[1625644578423,1.6533023,34719.0,34715.0,0.59243941]
[1625644578664,0.496009,34716.0,34715.0,0.59243941]
[1625644578784,0.709089,34716.0,34715.0,0.59243941]
[1625644578905,0.709089,34716.0,34715.0,0.25390319]
[1625644579027,1.19023988,34716.0,34715.0,0.25390319]
[1625644579266,1.19023988,34716.0,34715.0,0.0846344]
[1625644579385,1.19023988,34716.0,34714.0,0.25371799]
[1625644579631,1.19023988,34716.0,34712.0,0.74801142]
[1625644579632,0.49522002,34715.0,34712.0,0.24057544]
[1625644579930,1.64954668,34713.0,34712.0,0.24057544]
[1625644580654,2.96863842,34713.0,34712.0,0.24057544]
[1625644581072,1.64954668,34713.0,34712.0,0.24057544]
[1625644581855,1.64954668,34713.0,34707.0,0.83271589]
[1625644581975,1.73714668,34713.0,34707.0,0.83271589]
[1625644582095,1.64954668,34713.0,34707.0,0.83271589]
[1625644582398,1.64954668,34713.0,34707.0,0.25377444]
[1625644582514,0.24057544,34714.0,34681.0,0.3796]
[1625644582636,0.24057544,34714.0,34674.0,0.2929]
[1625644582939,0.57576938,34702.0,34699.0,0.83213859]
[1625644583057,0.48115088,34700.0,34699.0,0.83213859]
[1625644583237,5.50665166,34700.0,34699.0,0.24057544]
[1625644583358,5.50665166,34700.0,34696.0,0.08450308]
[1625644583541,5.50665166,34700.0,34694.0,0.25350705]
[1625644583665,5.50665166,34700.0,34689.0,1.18303288]
[1625644583786,0.57443772,34695.0,34692.0,0.08450529]
[1625644583964,0.86133772,34695.0,34692.0,0.08450529]
[1625644584080,0.49154728,34693.0,34687.0,0.25354249]
[1625644584325,0.49154728,34693.0,34678.0,0.54053397]
[1625644584326,0.48937778,34689.0,34678.0,0.54053397]
[1625644584442,0.48937778,34689.0,34679.0,0.057]
[1625644584559,0.24475399,34685.0,34679.0,0.057]
[1625644584679,0.49534399,34685.0,34675.0,0.59011547]
[1625644584980,0.48115088,34676.0,34675.0,0.83069091]
[1625644585101,0.48115088,34676.0,34675.0,0.40917986]